Cogmind - Beta 13 @@@ ROGUE MODE // 2024.06.03 @ 17:59:49 Player: Some Pennies Result: Destroyed by D-53 Grenadier with Mini Grenade Launcher Performance ------------- Evolutions (0) 0 Regions Visited (2) 400 Robots Destroyed (34) 170 Value Destroyed (687) 687 Prototype IDs (0) 0 Alien Tech Used (0) 0 Bonus (0) 0 TOTAL SCORE: 1257 Bonus ------- None Cogmind --------- Core Integrity 0/250 Matter 243/300 Energy 100/100 System Corruption 2% Temperature Cool (0) Movement Treading (240) Ox1 Location -10/Mines Parts ------- > --- POWER (1) -------- (None) > --- PROPULSION (2) --- Light Treads Light Treads > --- UTILITY (2) ------ High-capacity Storage Unit Medium Armor Plating > --- WEAPON (2) ------- Beam Cannon > --- INVENTORY (20) --- Light Nuclear Core Light Nuclear Core Improved Heat Sink Seismic Detector Seismic Detector Hacking Suite Authchip [Propulsion] Authchip [Propulsion] Authchip [Propulsion] Authchip [Processor] Grenade Launcher Datajack Plasma Cutter Heavy Hammer Peak State ------------ > --- POWER ------------ Light Ion Engine > --- PROPULSION ------- Light Treads Light Treads > --- UTILITY ---------- Large Storage Unit Improved Terrain Scanner > --- WEAPON ----------- Assault Rifle Light Assault Rifle > --- INVENTORY -------- Light Ion Engine Light Treads Light Treads Seismic Detector Seismic Detector Authchip [R/Combat] Authchip [R/Combat] Authchip [Propulsion] Authchip [Propulsion] Authchip [Propulsion] Authchip [Processor] Grenade Launcher Mining Laser [Rating: 12] Favorites ----------- Power Light Ion Engine Engine Light Ion Engine Propulsion Light Treads Treads Light Treads Utility Seismic Detector Device Seismic Detector Storage Large Storage Unit Protection Medium Armor Plating Weapon Assault Rifle Energy Cannon Beam Cannon Ballistic Gun Assault Rifle Ballistic Cannon Light Cannon Launcher Grenade Launcher Impact Weapon Heavy Hammer Build | -11 -10 -10 ------- Run | Yrd Mat Min Slots Evolved . | . . . Power . | . . . Propulsion . | . . . Utility . | . . . Weapon . | . . . Parts Attached 31 | 7 12 12 Power 3 | 1 1 1 Engine 3 | 1 1 1 Core . | . . . Reactor . | . . . Propulsion 5 | 2 1 2 Treads 5 | 2 1 2 Leg . | . . . Wheel . | . . . Hover . | . . . Flight . | . . . Utility 9 | 2 4 3 Device 4 | 1 2 1 Storage 3 | 1 2 . Processor . | . . . Hackware . | . . . Protection 2 | . . 2 Artifact . | . . . Weapon 14 | 2 6 6 Energy Gun . | . . . Energy Cannon 2 | . 1 1 Ballistic Gun 7 | 2 3 2 Ballistic Cannon 1 | . 1 . Launcher 3 | . 1 2 Special Weapon . | . . . Impact Weapon 1 | . . 1 Slashing Weapon . | . . . Piercing Weapon . | . . . Special Melee Weapon . | . . . Unidentified Prototypes . | . . . Parts Lost 7 | . 1 6 Power 1 | . . 1 Propulsion 2 | . . 2 Utility 1 | . 1 . Weapon 3 | . . 3 Highest Loss Streak 4 | . 1 4 To Critical Strikes . | . . . Average Slot Usage (%) 98 | . 99 90 Engine 14 | . 14 14 Treads 26 | . 28 20 Device 12 | . 13 6 Storage 14 | . 14 14 Protection 1 | . . 7 Energy Cannon 4 | . 2 14 Ballistic Gun 17 | . 18 12 Ballistic Cannon 6 | . 7 . Naked Turns . | . . . Heaviest Build 55 | 12 50 55 Greatest Support 40 | 40 40 40 Greatest Overweight (x) 2 | . 1 2 Average Overweight (x) . | . . 1 Largest Inventory Capacity 20 | 8 20 20 Average Capacity 15 | 7 16 20 Most Carried 18 | 5 17 18 Average Carried 13 | 2 13 16 Final Capacity 20 | 8 20 20 Final Carried 17 | 4 17 14 Class Distribution -------------------- 100% | Mutant Dominant Class ---------------- Mutant | -10/Materials Mutant | -10/Mines Resources | -11 -10 -10 ----------- Run | Yrd Mat Min Matter Collected 969 | 317 547 105 Remotely . | . . . Salvage Created 1103 | 160 755 188 Parts 68 | 15 43 10 Haulers Intercepted 2 | . 2 . Recyclers Shooed 6 | 1 5 . Parts Field Recycled . | . . . Retrieved Matter . | . . . Parts Self-Destructed . | . . . Prevented . | . . . Kills | -11 -10 -10 ------- Run | Yrd Mat Min Combat Hostiles Destroyed 19 | . 14 5 Guns 8 | . 7 1 Cannons 5 | . 2 3 AOE 5 | . 5 . Classes Destroyed 9 | 3 5 1 Worker 2 | 2 . . Tunneler 2 | 2 . . Hauler 2 | . 2 . Recycler 5 | 1 4 . Operator 3 | . 3 . Watcher 2 | . 2 . Swarmer 6 | . 6 . Grunt 12 | . 8 4 Assembled 1 | . . 1 Best Kill Streak 5 | 2 5 2 Combat Bots Only 5 | . 5 2 Max Kills in Single Turn 2 | 1 2 1 Gunslinging . | . . . Exploded 2 | . 2 . Melee . | . . . Uniques/NPCs Destroyed . | . . . Combat | -11 -10 -10 -------- Run | Yrd Mat Min Hostile Shots Fired 118 | . 71 47 Missed 23 | . 15 8 Damage Taken 1403 | . 547 856 Core 256 | . 97 159 Absorbed by Shields . | . . . Core Remaining (%) 100 | 100 . . Volleys Fired 111 | 16 75 20 Largest 2 | 2 2 2 Hottest 95 | 40 95 95 Shots Fired 221 | 32 150 39 Gun 161 | 32 114 15 Cannon 54 | . 30 24 Launcher 6 | . 6 . Special . | . . . Kinetic 191 | 32 140 19 Thermal 24 | . 4 20 Explosive 6 | . 6 . Electromagnetic . | . . . Robot Hit Streak 8 | 6 8 5 Robot Miss Streak 8 | 2 8 3 Penetration Max . | . . . Secondary Targets . | . . . Shots Hit Robots 123 | 19 81 23 Core Hits 55 | 6 42 7 Critical Kills . | . . . Critical Parts Destroyed 1 | . 1 . Critical Strikes 2 | . 2 . Destroy 1 | . 1 . Blast 1 | . 1 . Melee Attacks 1 | . . 1 Impact 1 | . . 1 Slashing . | . . . Piercing . | . . . Sneak Attacks . | . . . Combat Hostiles . | . . . Follow-up Attacks . | . . . Damage Inflicted 1861 | 188 1257 416 Guns 1036 | 188 699 149 Cannons 489 | . 292 197 Explosions 266 | . 266 . Melee 70 | . . 70 Ramming . | . . . Kinetic 1331 | 188 938 205 Thermal 194 | . 53 141 Explosive 266 | . 266 . Electromagnetic . | . . . Impact 70 | . . 70 Slashing . | . . . Piercing . | . . . Highest Corruption 2 | . 2 2 Average Corruption 1 | . 1 2 Corruption Purged . | . . . Corruption Blocked . | . . . Effects 16 | . 15 1 Message Errors 5 | . 4 1 Matter Fused 3 | . 3 . Heat Flow Errors 2 | . 2 . Energy Discharges 3 | . 3 . Misfires 1 | . 1 . Alerts 1 | . 1 . Weapon Failures 1 | . 1 . Overload Shots . | . . . Overflow Damage 45 | . 15 30 Projectiles 5 | . 5 . Explosions 10 | . 10 . Melee 30 | . . 30 Knockbacks 3 | . 1 2 Impact 1 | . . 1 Kinetic 2 | . 1 1 Secondary . | . . . Self-Inflicted Damage . | . . . Shots . | . . . Rammed . | . . . Targets Rammed . | . . . Kicked . | . . . Crushed . | . . . Highest Temperature 393 | . 255 393 Average Temperature 103 | . 42 154 Received Heat Transfer 432 | . 183 249 Effects 1 | . . 1 Shutdowns 1 | . . 1 Siege Activations . | . . . Robots Corrupted . | . . . Combat Hostiles . | . . . Parts Fried . | . . . Impact Corruptions 2 | . . 2 Robots Melted . | . . . Combat Hostiles . | . . . Parts Melted . | . . . Heat Transferred 407 | . 111 296 Parts Sabotaged . | . . . Parts Stolen . | . . . Parts Stripped . | . . . Power Chain Reactions . | . . . Alert | -11 -10 -10 ------- Run | Yrd Mat Min Peak Influence 213 | 25 213 134 Initial 16 | . 16 9 Average 93 | 13 101 111 Maximum Alert Level 1 | . 1 . Low Security (%) 91 | 100 88 100 Level 1 8 | . 11 . Level 2 . | . . . Level 3 . | . . . Level 4 . | . . . Level 5 . | . . . High Security . | . . . Max Security . | . . . Squads Dispatched 3 | . 3 . Investigation 1 | . 1 . Extermination . | . . . Reinforcement 2 | . 2 . Assault . | . . . Garrison . | . . . Intercept . | . . . Searches Triggered . | . . . Construction Impeded . | . . . Haulers Reinforced . | . . . Active Scanning Responses . | . . . Cargo Convoy Interrupts . | . . . Stealth | -11 -10 -10 --------- Run | Yrd Mat Min Distress Signals 1 | . 1 . Communications Jammed . | . . . Distress Signals . | . . . Times Spotted 50 | . 29 21 Peak Tracking Total 21 | . 5 21 Tactical Retreats . | . . . Traps | -11 -10 -10 ------- Run | Yrd Mat Min Traps Triggered 2 | . 2 . Indirectly . | . . . Trap Hack Attempts . | . . . Triggered . | . . . Disarmed . | . . . Reprogrammed . | . . . Reused . | . . . Traps Extracted . | . . . Installed . | . . . Triggered . | . . . Machines | -11 -10 -10 ---------- Run | Yrd Mat Min Machines Disabled 5 | . 2 3 Max in Single Turn 1 | . 1 1 Machines Repaired . | . . . Machines Dismantled . | . . . Machines Sabotaged . | . . . Overloaded Fab Kills . | . . . Hacking | -11 -10 -10 --------- Run | Yrd Mat Min Machines Accessed 6 | . 6 . Terminals 5 | . 5 . Fabricators . | . . . Repair Stations . | . . . Recycling Units 1 | . 1 . Scanalyzers . | . . . Garrison Access . | . . . Total Hacks 16 | . 16 . Successful 5 | . 5 . Failed 10 | . 10 . Catastrophic 1 | . 1 . Database Lockouts 1 | . 1 . Manual 11 | . 11 . Terminals 13 | . 13 . Fabricators . | . . . Repair Stations . | . . . Recycling Units 3 | . 3 . Scanalyzers . | . . . Garrison Access . | . . . Terminal Hacks 4 | . 4 . Robot Analysis 3 | . 3 . Emergency Access Points 1 | . 1 . Fabricator Hacks . | . . . Repair Station Hacks . | . . . Recycling Unit Hacks 1 | . 1 . Retrieve Components 1 | . 1 . Scanalyzer . | . . . Garrison Access Hacks . | . . . Unauthorized Hacks . | . . . Terminals . | . . . Fabricators . | . . . Repair Stations . | . . . Recycling Units . | . . . Scanalyzers . | . . . Garrison Access . | . . . Data Cores Recovered . | . . . Used . | . . . Hacking Detections 6 | . 6 . Full Trace Events 2 | . 2 . Feedback Events . | . . . Feedback Blocked . | . . . Robot Schematics Acquired . | . . . Robots Built . | . . . Authchips . | . . . Time . | . . . Total Robot Build Rating . | . . . Part Schematics Acquired . | . . . Parts Built . | . . . Authchips . | . . . Time . | . . . Total Part Build Rating . | . . . Parts Repaired . | . . . Time . | . . . Parts Recycled . | . . . Recycled Matter . | . . . Retrieved Matter . | . . . Retrieved Components 9 | . 9 . Parts Scanalyzed . | . . . Part Schematics Acquired . | . . . Parts Damaged . | . . . Bothacking | -11 -10 -10 ------------ Run | Yrd Mat Min Used RIF Installer . | . . . Robots Hacked . | . . . Non-combat . | . . . Combat . | . . . Robot Hacks Applied . | . . . Relay Couplers Released . | . . . Fabnet Peak Effective % . | . . . Robots Rewired . | . . . Allies Hacked . | . . . Hacks Repelled . | . . . Allies | -11 -10 -10 -------- Run | Yrd Mat Min Total Allies . | . . . Largest Group . | . . . Highest-Rated Group . | . . . Highest-Rated Ally . | . . . Total Orders . | . . . Ally Attacks . | . . . Total Damage . | . . . Kills . | . . . Allies Corrupted . | . . . Allies Melted . | . . . Intel | -11 -10 -10 ------- Run | Yrd Mat Min Robot Analysis Total 3 | . 3 . Derelict Logs Recovered 1 | . . 1 Drone Launches . | . . . Drone Recoveries . | . . . Exploration | -11 -10 -10 ------------- Run | Yrd Mat Min Turns Passed 2292 | 229 1780 283 Spaces Moved 1003 | 108 827 68 Core 8 | 8 . . Treads 995 | 100 827 68 Legs . | . . . Wheels . | . . . Hover . | . . . Flight . | . . . Fastest Speed 50 | 50 160 240 Average Speed 186 | 151 183 285 Slowest Speed 320 | 160 240 320 Overloaded Moves . | . . . Propulsion Burnouts . | . . . Robots Hopped . | . . . Cave-ins Triggered . | . . . Exploration Rate (%) 45 | 6 97 32 Regions Visited 2 Branch Regions 1 Pre-discovered Areas . | . . . Known Exits Taken . | . . . Unknown Exits Taken 2 | 1 1 . Scrap Searched 1 | . . 1 Spaces Dug . | . . . Terrain Destroyed 9 | . 9 . Melee . | . . . Projectile . | . . . AOE 9 | . 9 . Terrain Rammed . | . . . Walls Destroyed . | . . . Machines Disabled . | . . . Actions | -11 -10 -10 --------- Run | Yrd Mat Min Total 1217 | 145 958 114 Wait 14 | . 6 8 Move 1001 | 107 826 68 Hop . | . . . Pick Up 40 | 13 24 3 Fast Attach 1 | . 1 . Attach 14 | 7 2 5 Detach . | . . . Swap 16 | . 9 7 Drop 19 | 2 15 2 Fire 111 | 16 75 20 Melee 1 | . . 1 Ram . | . . . Kick . | . . . Crush . | . . . Escape Stasis . | . . . Rewire . | . . . Trap . | . . . Miscellaneous . | . . . Route ------- -11/Scrapyard -10/Materials (discovered 4 exits: [*Mat x3] / [*Min]) -10/Mines History --------- Turn | Location | Event 6 | -11/Scrapyard | Discovered new exit (range 15) 230 | -11/Scrapyard | Entered Materials 302 | -10/Materials | Discovered new exit (range 15) 310 | -10/Materials | Build established: Mutant 1152 | -10/Materials | Discovered new exit (range 6) 1233 | -10/Materials | Discovered new exit (range 11) 1315 | -10/Materials | Discovered new exit (range 3) 1355 | -10/Materials | Central database locked down 2010 | -10/Materials | Entered Mines 2054 | -10/Mines | Met a Derelict bent on vengeance 2089 | -10/Mines | Core integrity fell below 50% 2214 | -10/Mines | Learned Materials terminal intel 2253 | -10/Mines | Assembled infested the area 2288 | -10/Mines | Core integrity fell below 20% 2293 | -10/Mines | Destroyed by D-53 Grenadier with Mini Grenade Launcher Last Messages --------------- payload. 02282_ as-69859 destroyed. 02282_ as-96842 destroyed. 02284_ HV Slug penetrates as-04886. 02284_ as-04886 destroyed. 02285_ as-27125 destroyed. 02285_ as-22691 destroyed. 02285_ Lgt. Treads destroyed. 02285_ Assault Rifle destroyed. 02285_ as-52830 destroyed. 02286_ HV Slug penetrates as-18990. 02286_ as-18990 suffers critical hit (Destroy). 02288_ HV Slug penetrates as-64013. 02288_ as-64013 destroyed. 02291_ HV Slug penetrates as-18990. 02291_ as-18990 suffers critical hit (Destroy). 02291_ HV Slug penetrates as-18990. 02291_ as-18990 destroyed. 02292_ Lgt. Ion Engine destroyed. 02293_ The unstable cave ceiling collapses. Map ----- +----------------------------------------------------+ | ?????????????????????????????????????????????????? | | ?????????????????????????????????????????????????? | | ?????????????????????????????????????????????????? | | ?????????????????????????????????????????????????? | | ?????????????????????????????????????????????????? | | ?????????????????????????????????????????????????? | | ?????????????????????????????????????????????????? | | ?????????????????????????????????????????????????? | | ?????????????????????????????????????????????????? | | ?????????????????????????????????????????????????? | | ?????????????????????????? ?????????????????????? | | ??????????????????????????%a ???????????????????? | | ??????????????????????????[ ???????????????????? | | ??????????????????????????%= ??????????????????? | | ??????????????????????????*a%%???????????????????? | | ?????????????????????????? a ???????????????????? | | ?????????????????????????? a????????????????????? | | ????????????????????????##a a????????????????????? | | ??????????????????????### a #????????????????????? | | ?????????????????????## a##???????????????????? | | ????????????????????## #???????????????????? | | ???????????????????## #???????????????????? | | ???????????????????# ##??????????????????? | | ???????????????????# #??????????????????? | | ??????????????????## #???????????????????? | | ??????????????????# @ #???????????????????? | | ??????????????????## #???????????????????? | | ???????????????????# #???????????????????? | | ???????????????????# # d #???????????????????? | | ??????????????????# d ##???????????????????? | | ??????????????????## #########????????????? | | ??????????????#????### ### %" #????????????? | | ??????????????# ????## ########### #????????????? | | ????????????### ??## ##???????# #????????????? | | ???????????## ### #???????# #????????????? | | ??????????## ######### #????????????? | | ??????????# #????????????? | | ??????????# #????????????? | | ??????????# ??# ###########????????????? | | ??????????# #??### #####?????????????????? | | ??????????# #????### ##????????????????? | | ??????????# #??????# = ##???????????????? | | ??????????# #?????## ! ##??????????????? | | ??????????# #??#### * %! ????????? | | ??????????# #### "" [ ????????? | | ??????????# """ #?????????? | | ########### ### ## ##?????????? | | ### ## ##??????????????? | | """ """ """ #?## ##?####???????????????? | | """ """ """ #??# #?????????????????????? | +----------------------------------------------------+ Best States ------------- Heat Dissipation 25 Energy Generation 10 Energy Capacity 125 Matter Stores 300 Matter Capacity 300 Sight Range 16 Terrain Scan Range 16 Terrain Scan Density 10 Armor Coverage 225 Evasion (%) 40 Recoil Reduction 2 Authchip Count 6 Item Schematics ----------------- None Robot Schematics ------------------ None Fabricated ------------ Nothing Alien Tech Used ----------------- None Achievements -------------- None Challenges ------------ None Game ------ Seed DeuteriumPotentialPropulsion Manual? 0 Play Time 00:17:28 Cumulative 126.6 hours Start 2024.06.03 @ 17:44:13 End 2024.06.03 @ 17:59:49 Sessions 1 Manual Loads 0 Difficulty Rogue Special Mode None Game No. 110 Rogue 105 Adventurer 5 Explorer 0 Win Type - Total 2 Types 2/0/0/0/0/0/0/0/0 Lore% 60 Gallery% 68 Achievement% 47 Wizard Run 0 Options --------- Layout 2 ASCII 0 Keyboard 0 Movement Mouse Keybinds 0 Fullscreen 2 Font 24/Smallcaps Map View 50x44 Zoom Use 0% Tactical HUD 1 Map Filters NONE Filters NONE Steam 1 RUN: 06a3dc56-3532-4fa8-98c5-d8f57ef5398a